[Event "17th Spilimbergo Open 2019"]
[Site "Spilimbergo"]
[Date "2019.08.12"]
[Round "6.11"]
[White "Ravi, Teja S."]
[Black "Blom, Vincent"]
[Result "1/2-1/2"]
[WhiteElo "2420"]
[BlackElo "2303"]
[PlyCount "72"]
[EventDate "2019.08.09"]
[EventType "swiss"]
[EventCountry "ITA"]
[TimeControl "5400+30"]
[WhiteClock "0:10:27"]
[BlackClock "0:25:00"]

1. d4 {[%emt 0:00:30]} Nf6 {[%emt 0:02:30]} 2. Nf3 {[%emt 0:00:00]} b6 {[%emt 0:00:30]} 3. e3 {[%emt 0:00:00]} Bb7 {[%emt 0:00:30]} 4. Bd3 {[%emt 0:00:30]} g6 {[%emt 0:01:30]} 5. O-O {[%emt 0:00:30]} Bg7 {[%emt 0:00:30]} 6. c4 {[%emt 0:00:00]} c5 {[%emt 0:04:30]} 7. d5 {[%emt 0:00:00]} b5 {[%emt 0:01:30]} 8. Nc3 {[%emt 0:06:30]} bxc4 {[%emt 0:03:30]} 9. Bxc4 {[%emt 0:00:30]} d6 {[%emt 0:01:30]} 10. e4 {[%emt 0:01:30]} O-O {[%emt 0:07:30]} 11. Bf4 {[%emt 0:03:30]} Nbd7 {[%emt 0:01:30]} 12. h3 {[%emt 0:05:30]} Nb6 {[%emt 0:04:30]} 13. Be2 {[%emt 0:02:30]} c4 {[%emt 0:25:30]} 14. Qd2 {[%emt 0:01:30]} Re8 {[%emt 0:00:00]} 15. Rfe1 {[%emt 0:05:30]} Nfd7 {[%emt 0:01:00]} 16. h4 {[%emt 0:07:30]} Nc5 {[%emt 0:03:30]} 17. Bh6 {[%emt 0:00:30]} Bh8 {[%emt 0:01:30]} 18. h5 {[%emt 0:06:30]} e6 {[%emt 0:13:30]} 19. hxg6 {[%emt 0:00:30]} hxg6 {[%emt 0:00:00]} 20. dxe6 {[%emt 0:02:30]} Rxe6 {[%emt 0:03:00]} 21. Ng5 {[%emt 0:13:30]} Re8 {[%emt 0:00:30]} 22. f3 {[%emt 0:02:30]} Qf6 {[%emt 0:04:07]} 23. Rad1 {[%emt 0:01:30]} Bg7 {[%emt 0:00:20]} 24. Bxg7 {[%emt 0:01:30]} Kxg7 {[%emt 0:00:20]} 25. Nh3 {[%emt 0:02:30]} Rad8 {[%emt 0:01:48]} 26. Qd4 {[%emt 0:02:30]} Qxd4+ {[%emt 0:03:25]} 27. Rxd4 {[%emt 0:00:30]} d5 {[%emt 0:00:34]} 28. exd5 {[%emt 0:00:30]} Nxd5 {[%emt 0:01:41]} 29. Kf2 {[%emt 0:03:30]} Nb4 {[%emt 0:01:49]} 30. Rxd8 {[%emt 0:00:30]} Rxd8 {[%emt 0:00:13]} 31. Rd1 {[%emt 0:05:30]} Rxd1 {[%emt 0:02:25]} 32. Nxd1 {[%emt 0:00:00]} Nxa2 {[%emt 0:00:46]} 33. Bxc4 {[%emt 0:00:00]} Nb4 {[%emt 0:00:00]} 34. Ke3 {[%emt 0:02:30]} Nc2+ {[%emt 0:00:55]} 35. Kd2 {[%emt 0:00:00]} Nd4 {[%emt 0:00:10]} 36. Ne3 {[%emt 0:00:00]} Bc8 1/2-1/2

[Event "17th Spilimbergo Open 2019"]
[Site "Spilimbergo"]
[Date "2019.08.12"]
[Round "6.12"]
[White "Rahul Srivatshav P"]
[Black "Kumar, Nikhil"]
[Result "1-0"]
[WhiteElo "2410"]
[BlackElo "2272"]
[PlyCount "87"]
[EventDate "2019.08.09"]
[EventType "swiss"]
[EventCountry "ITA"]
[TimeControl "5400+30"]
[WhiteClock "0:25:00"]
[BlackClock "0:28:00"]

1. d4 {[%emt 0:00:30]} Nf6 {[%emt 0:02:30]} 2. c4 {[%emt 0:00:00]} e6 {[%emt 0:00:00]} 3. g3 {[%emt 0:00:00]} d5 {[%emt 0:00:00]} 4. Nf3 {[%emt 0:00:00]} Be7 {[%emt 0:00:30]} 5. Bg2 {[%emt 0:00:00]} O-O {[%emt 0:00:00]} 6. Nc3 {[%emt 0:00:00]} c6 {[%emt 0:03:00]} 7. O-O {[%emt 0:01:00]} Nbd7 {[%emt 0:00:30]} 8. Qd3 {[%emt 0:00:30]} b6 {[%emt 0:00:30]} 9. b3 {[%emt 0:00:30]} Bb7 {[%emt 0:00:30]} 10. Rd1 {[%emt 0:04:30]} Rc8 {[%emt 0:01:30]} 11. Bb2 {[%emt 0:04:30]} Qc7 {[%emt 0:01:30]} 12. Rac1 {[%emt 0:03:30]} Qb8 {[%emt 0:00:00]} 13. Nd2 {[%emt 0:06:30]} e5 {[%emt 0:09:00]} 14. cxd5 {[%emt 0:01:30]} cxd5 {[%emt 0:00:30]} 15. dxe5 {[%emt 0:00:30]} Nxe5 {[%emt 0:01:30]} 16. Qf5 {[%emt 0:01:30]} g6 {[%emt 0:00:30]} 17. Qb1 {[%emt 0:02:30]} Rfd8 {[%emt 0:04:30]} 18. Nb5 {[%emt 0:04:30]} Rxc1 {[%emt 0:01:30]} 19. Rxc1 {[%emt 0:00:00]} a6 {[%emt 0:00:30]} 20. Nd4 {[%emt 0:05:00]} Bc5 {[%emt 0:01:30]} 21. Ba1 {[%emt 0:02:30]} Qd6 {[%emt 0:03:30]} 22. Rd1 {[%emt 0:01:30]} Qe7 {[%emt 0:00:30]} 23. h3 {[%emt 0:03:30]} Re8 {[%emt 0:01:30]} 24. e3 {[%emt 0:01:30]} a5 {[%emt 0:01:30]} 25. N4f3 {[%emt 0:03:30]} Ned7 {[%emt 0:05:30]} 26. Qb2 {[%emt 0:02:30]} Ba3 {[%emt 0:01:30]} 27. Qd4 {[%emt 0:00:30]} Bc5 {[%emt 0:03:30]} 28. Qf4 {[%emt 0:04:30]} Bd6 {[%emt 0:06:30]} 29. Qh6 {[%emt 0:00:30]} Qf8 {[%emt 0:01:30]} 30. Qh4 {[%emt 0:00:30]} Be7 {[%emt 0:00:30]} 31. Qa4 {[%emt 0:03:30]} Bd6 {[%emt 0:04:30]} 32. g4 {[%emt 0:01:30]} Qe7 {[%emt 0:02:30]} 33. g5 {[%emt 0:10:30]} Nh5 {[%emt 0:00:30]} 34. Qd4 {[%emt 0:00:30]} f6 {[%emt 0:00:30]} 35. Nf1 {[%emt 0:01:30]} Bc5 {[%emt 0:02:30]} 36. Qc3 {[%emt 0:00:30]} Rf8 {[%emt 0:08:30]} 37. N1h2 {[%emt 0:01:30]} Ng7 {[%emt 0:06:30]} 38. Ng4 {[%emt 0:00:30]} fxg5 {[%emt 0:00:30]} 39. Nxg5 {[%emt 0:02:30]} d4 {[%emt 0:00:30]} 40. exd4 {[%emt 0:00:30]} Bb4 {[%emt 0:01:30]} 41. Qc4+ {[%emt 0:02:30]} Kh8 {[%emt 0:00:30]} 42. Nh6 {[%emt 0:00:00]} Nf5 {[%emt 0:02:30]} 43. Nhf7+ {[%emt 0:00:00]} Kg7 {[%emt 0:00:00]} 44. Bxb7 1-0

[Event "17th Spilimbergo Open 2019"]
[Site "Spilimbergo"]
[Date "2019.08.13"]
[Round "7.1"]
[White "Dragnev, Valentin"]
[Black "Kovalev, Vladislav"]
[Result "0-1"]
[WhiteElo "2535"]
[BlackElo "2651"]
[PlyCount "58"]
[EventDate "2019.08.09"]
[EventType "swiss"]
[EventCountry "ITA"]
[TimeControl "5400+30"]
[WhiteClock "0:03:42"]
[BlackClock "0:01:38"]

1. d4 {[%emt 0:00:30]} Nf6 {[%emt 0:00:30]} 2. c4 {[%emt 0:00:00]} e6 {[%emt 0:00:00]} 3. Nf3 {[%emt 0:00:00]} d5 {[%emt 0:00:00]} 4. g3 {[%emt 0:01:30]} Be7 {[%emt 0:00:30]} 5. Bg2 {[%emt 0:00:00]} O-O {[%emt 0:00:00]} 6. O-O {[%emt 0:00:00]} dxc4 {[%emt 0:00:00]} 7. Qc2 {[%emt 0:00:30]} a6 {[%emt 0:00:00]} 8. a4 {[%emt 0:00:00]} Bd7 {[%emt 0:00:00]} 9. Rd1 {[%emt 0:00:00]} Bc6 {[%emt 0:00:30]} 10. Bg5 {[%emt 0:01:30]} b5 {[%emt 0:05:30]} 11. Bxf6 {[%emt 0:01:30]} Bxf6 {[%emt 0:00:30]} 12. Nc3 {[%emt 0:00:00]} Qe7 {[%emt 0:09:30]} 13. e4 {[%emt 0:01:00]} g6 {[%emt 0:01:30]} 14. d5 {[%emt 0:01:30]} Bb7 {[%emt 0:14:30]} 15. dxe6 {[%emt 0:05:30]} fxe6 {[%emt 0:19:30]} 16. axb5 {[%emt 0:01:30]} axb5 {[%emt 0:02:30]} 17. Rxa8 {[%emt 0:02:30]} Bxa8 {[%emt 0:00:30]} 18. Nxb5 {[%emt 0:00:30]} Nc6 {[%emt 0:10:30]} 19. Rd2 {[%emt 0:34:30]} Na5 {[%emt 0:07:30]} 20. Qa4 {[%emt 0:12:30]} Bxe4 {[%emt 0:09:49]} 21. Nfd4 {[%emt 0:07:30]} Bxg2 {[%emt 0:01:40]} 22. Kxg2 {[%emt 0:00:30]} c5 {[%emt 0:01:30]} 23. Nf3 {[%emt 0:05:30]} Bg7 {[%emt 0:06:03]} 24. Qxa5 {[%emt 0:15:50]} Qb7 {[%emt 0:00:04]} 25. Kg1 {[%emt 0:00:12]} Qxf3 {[%emt 0:00:38]} 26. Qa3 {[%emt 0:02:23]} c3 {[%emt 0:05:52]} 27. bxc3 {[%emt 0:02:38]} Bh6 {[%emt 0:00:27]} 28. Rb2 {[%emt 0:03:46]} Bc1 {[%emt 0:00:45]} 29. Qa2 {[%emt 0:00:00]} Rd8 0-1

[Event "17th Spilimbergo Open 2019"]
[Site "Spilimbergo"]
[Date "2019.08.13"]
[Round "7.2"]
[White "Saric, Ivan"]
[Black "Sardana, Rishi"]
[Result "1-0"]
[WhiteElo "2660"]
[BlackElo "2410"]
[PlyCount "249"]
[EventDate "2019.08.09"]
[EventType "swiss"]
[EventCountry "ITA"]
[TimeControl "5400+30"]
[BlackClock "0:00:07"]

1. e4 {[%emt 0:00:30]} c5 {[%emt 0:00:30]} 2. Nf3 {[%emt 0:00:00]} d6 {[%emt 0:00:00]} 3. d4 {[%emt 0:00:00]} cxd4 {[%emt 0:00:00]} 4. Nxd4 {[%emt 0:00:30]} Nf6 {[%emt 0:00:30]} 5. Nc3 {[%emt 0:00:00]} a6 {[%emt 0:00:00]} 6. Be3 {[%emt 0:03:00]} e5 {[%emt 0:00:00]} 7. Nb3 {[%emt 0:00:30]} Be6 {[%emt 0:00:00]} 8. f3 {[%emt 0:00:00]} Nbd7 {[%emt 0:01:00]} 9. g4 {[%emt 0:01:00]} Be7 {[%emt 0:01:30]} 10. Qd2 {[%emt 0:02:30]} O-O {[%emt 0:00:30]} 11. g5 {[%emt 0:00:30]} Nh5 {[%emt 0:00:30]} 12. O-O-O {[%emt 0:01:30]} b5 {[%emt 0:00:30]} 13. Kb1 {[%emt 0:00:30]} Nb6 {[%emt 0:01:30]} 14. Nd5 {[%emt 0:00:30]} Bxd5 {[%emt 0:05:30]} 15. exd5 {[%emt 0:00:30]} Rc8 {[%emt 0:01:30]} 16. Na5 {[%emt 0:01:30]} Nxd5 {[%emt 0:00:30]} 17. Qxd5 {[%emt 0:00:30]} Qxa5 {[%emt 0:00:30]} 18. Rg1 {[%emt 0:02:30]} g6 {[%emt 0:00:30]} 19. Rg4 {[%emt 0:04:30]} Nf4 {[%emt 0:07:30]} 20. Bxf4 {[%emt 0:00:30]} exf4 {[%emt 0:04:30]} 21. h4 {[%emt 0:03:30]} Qa4 {[%emt 0:12:30]} 22. Qd2 {[%emt 0:03:30]} d5 {[%emt 0:17:30]} 23. Bd3 {[%emt 0:02:30]} Bd6 {[%emt 0:02:30]} 24. h5 {[%emt 0:00:30]} Qd4 {[%emt 0:08:30]} 25. hxg6 {[%emt 0:05:30]} fxg6 {[%emt 0:00:30]} 26. c3 {[%emt 0:01:30]} Qe3 {[%emt 0:00:30]} 27. Bc2 {[%emt 0:02:30]} Qxd2 {[%emt 0:05:30]} 28. Rxd2 {[%emt 0:00:30]} Rc5 {[%emt 0:04:30]} 29. Re2 {[%emt 0:14:30]} Rd8 {[%emt 0:05:30]} 30. Bb3 {[%emt 0:12:30]} a5 {[%emt 0:00:00]} 31. a3 {[%emt 0:00:30]} Kg7 {[%emt 0:00:00]} 32. Rd2 {[%emt 0:02:30]} Bc7 {[%emt 0:06:27]} 33. Rg1 {[%emt 0:00:30]} Rd7 {[%emt 0:04:09]} 34. Re2 {[%emt 0:06:30]} Bd6 {[%emt 0:00:38]} 35. Re8 {[%emt 0:00:30]} Re7 {[%emt 0:00:41]} 36. Rd8 {[%emt 0:01:30]} Bc7 {[%emt 0:00:02]} 37. Ra8 {[%emt 0:01:30]} Re3 {[%emt 0:04:27]} 38. Ba2 {[%emt 0:01:30]} Re5 {[%emt 0:01:54]} 39. Ra7 {[%emt 0:01:30]} Re7 {[%emt 0:01:24]} 40. b4 {[%emt 0:01:30]} Rxc3 {[%emt 0:00:28]} 41. Bxd5 {[%emt 0:00:30]} Rd3 {[%emt 0:01:07]} 42. Ba2 {[%emt 0:01:30]} axb4 {[%emt 0:00:13]} 43. axb4 {[%emt 0:00:30]} Rd4 {[%emt 0:01:53]} 44. Ra8 {[%emt 0:00:30]} Bd8 {[%emt 0:00:01]} 45. Kc2 {[%emt 0:05:14]} Rc7+ {[%emt 0:00:01]} 46. Kb2 {[%emt 0:00:43]} Rxb4+ {[%emt 0:00:19]} 47. Bb3 {[%emt 0:00:12]} Rd4 {[%emt 0:00:05]} 48. Re1 {[%emt 0:00:29]} Rd2+ {[%emt 0:01:19]} 49. Kb1 {[%emt 0:00:29]} Rc3 {[%emt 0:00:33]} 50. Ra7+ {[%emt 0:00:52]} Rc7 {[%emt 0:00:58]} 51. Rxc7+ {[%emt 0:00:55]} Bxc7 {[%emt 0:00:01]} 52. Re7+ {[%emt 0:00:06]} Kf8 {[%emt 0:00:02]} 53. Rf7+ {[%emt 0:02:07]} Ke8 {[%emt 0:00:00]} 54. Rxc7 {[%emt 0:00:06]} Rd3 {[%emt 0:00:06]} 55. Bc2 {[%emt 0:00:09]} Rxf3 {[%emt 0:00:50]} 56. Rxh7 {[%emt 0:00:19]} Rg3 {[%emt 0:00:43]} 57. Bxg6+ {[%emt 0:00:14]} Kd8 {[%emt 0:01:11]} 58. Rf7 {[%emt 0:01:04]} Rxg5 {[%emt 0:00:09]} 59. Bd3 {[%emt 0:00:16]} Rd5 {[%emt 0:00:43]} 60. Kc2 {[%emt 0:00:05]} Ke8 {[%emt 0:01:06]} 61. Rxf4 {[%emt 0:00:19]} Kd7 {[%emt 0:00:18]} 62. Kc3 {[%emt 0:00:08]} Kd6 {[%emt 0:00:03]} 63. Rf8 {[%emt 0:00:21]} Kc5 {[%emt 0:00:33]} 64. Rb8 {[%emt 0:00:06]} b4+ {[%emt 0:00:11]} 65. Kc2 {[%emt 0:00:05]} Rd4 {[%emt 0:00:11]} 66. Rb5+ {[%emt 0:00:19]} Kc6 {[%emt 0:00:06]} 67. Rg5 {[%emt 0:00:10]} Kd6 {[%emt 0:00:15]} 68. Bf1 {[%emt 0:00:48]} Rf4 {[%emt 0:00:47]} 69. Bg2 {[%emt 0:00:44]} Kc7 {[%emt 0:00:49]} 70. Kb3 {[%emt 0:00:08]} Kb6 {[%emt 0:00:10]} 71. Bd5 {[%emt 0:00:10]} Kc5 {[%emt 0:00:51]} 72. Bc4+ {[%emt 0:00:22]} Kd4 {[%emt 0:00:17]} 73. Kxb4 {[%emt 0:00:30]} Rf8 {[%emt 0:00:25]} 74. Rd5+ {[%emt 0:00:30]} Ke4 {[%emt 0:00:06]} 75. Rd7 {[%emt 0:00:30]} Rf6 {[%emt 0:00:46]} 76. Kc5 {[%emt 0:00:30]} Rf5+ {[%emt 0:00:32]} 77. Bd5+ {[%emt 0:00:00]} Ke3 {[%emt 0:00:44]} 78. Re7+ {[%emt 0:00:00]} Kd3 {[%emt 0:00:24]} 79. Ra7 {[%emt 0:00:30]} Ke3 {[%emt 0:00:38]} 80. Ra3+ {[%emt 0:00:30]} Kf4 {[%emt 0:00:01]} 81. Kd4 {[%emt 0:00:00]} Kg5 {[%emt 0:00:07]} 82. Be4 {[%emt 0:01:00]} Rf8 {[%emt 0:00:46]} 83. Rg3+ {[%emt 0:00:00]} Kf6 {[%emt 0:00:08]} 84. Rg6+ {[%emt 0:00:00]} Kf7 {[%emt 0:00:05]} 85. Rb6 {[%emt 0:00:30]} Rd8+ {[%emt 0:01:28]} 86. Bd5+ {[%emt 0:00:30]} Kg7 {[%emt 0:01:11]} 87. Ke5 {[%emt 0:00:30]} Rd7 {[%emt 0:00:25]} 88. Rb8 {[%emt 0:02:30]} Ra7 {[%emt 0:01:43]} 89. Rg8+ {[%emt 0:00:00]} Kh7 {[%emt 0:00:10]} 90. Rg1 {[%emt 0:01:00]} Ra5 {[%emt 0:00:31]} 91. Ke6 {[%emt 0:02:47]} Kh6 {[%emt 0:01:02]} 92. Bf3 {[%emt 0:00:19]} Ra6+ {[%emt 0:00:21]} 93. Kf5 {[%emt 0:00:19]} Ra5+ {[%emt 0:00:12]} 94. Kf4 {[%emt 0:00:04]} Ra4+ {[%emt 0:00:46]} 95. Be4 {[%emt 0:00:08]} Ra6 {[%emt 0:00:35]} 96. Bd3 {[%emt 0:02:07]} Rd6 {[%emt 0:00:16]} 97. Rg3 {[%emt 0:00:31]} Rf6+ {[%emt 0:01:49]} 98. Ke5 {[%emt 0:00:55]} Rc6 {[%emt 0:01:04]} 99. Bf5 {[%emt 0:00:21]} Ra6 {[%emt 0:00:27]} 100. Be6 {[%emt 0:00:09]} Kh5 {[%emt 0:01:33]} 101. Kf6 {[%emt 0:00:23]} Ra4 {[%emt 0:00:11]} 102. Rf3 {[%emt 0:07:33]} Rb4 {[%emt 0:00:29]} 103. Ra3 {[%emt 0:02:24]} Rf4+ {[%emt 0:00:28]} 104. Bf5 {[%emt 0:00:12]} Rb4 {[%emt 0:00:06]} 105. Ra8 {[%emt 0:00:24]} Kh4 {[%emt 0:00:05]} 106. Rg8 {[%emt 0:00:08]} Ra4 {[%emt 0:00:39]} 107. Ke5 {[%emt 0:00:08]} Rb4 {[%emt 0:01:25]} 108. Rg1 {[%emt 0:02:21]} Kh5 {[%emt 0:00:38]} 109. Be4 {[%emt 0:00:17]} Rb6 {[%emt 0:00:37]} 110. Kf5 {[%emt 0:00:43]} Kh6 {[%emt 0:00:23]} 111. Bd5 {[%emt 0:00:16]} Rb5 {[%emt 0:00:20]} 112. Rg6+ {[%emt 0:00:24]} Kh7 {[%emt 0:00:15]} 113. Rd6 {[%emt 0:00:05]} Kg7 {[%emt 0:00:16]} 114. Rd7+ {[%emt 0:00:55]} Kh6 {[%emt 0:00:07]} 115. Kf6 {[%emt 0:00:08]} Kh5 {[%emt 0:00:32]} 116. Be6 {[%emt 0:00:07]} Kh6 {[%emt 0:00:55]} 117. Rd8 {[%emt 0:02:13]} Rb7 {[%emt 0:00:06]} 118. Rg8 {[%emt 0:00:08]} Ra7 {[%emt 0:00:53]} 119. Bc8 {[%emt 0:00:23]} Rc7 {[%emt 0:00:19]} 120. Bf5 {[%emt 0:00:08]} Rc6+ {[%emt 0:00:19]} 121. Be6 {[%emt 0:00:02]} Rc7 {[%emt 0:00:39]} 122. Rg6+ {[%emt 0:00:33]} Kh7 {[%emt 0:00:52]} 123. Rg4 {[%emt 0:00:28]} Kh8 {[%emt 0:00:11]} 124. Rd4 {[%emt 0:00:22]} Ra7 {[%emt 0:01:52]} 125. Rd8+ {[%emt 0:00:06]} 1-0

[Event "17th Spilimbergo Open 2019"]
[Site "Spilimbergo"]
[Date "2019.08.13"]
[Round "7.3"]
[White "Vetoshko, Volodymyr"]
[Black "Bosiocic, Marin"]
[Result "0-1"]
[WhiteElo "2495"]
[BlackElo "2611"]
[PlyCount "72"]
[EventDate "2019.08.09"]
[EventType "swiss"]
[EventCountry "ITA"]
[TimeControl "5400+30"]
[WhiteClock "1:00:00"]
[BlackClock "0:15:58"]

1. e4 {[%emt 0:01:30]} c5 {[%emt 0:00:30]} 2. Nf3 {[%emt 0:00:00]} d6 {[%emt 0:00:00]} 3. Bb5+ {[%emt 0:00:00]} Nd7 {[%emt 0:00:00]} 4. Ba4 {[%emt 0:00:30]} Ngf6 {[%emt 0:00:30]} 5. O-O {[%emt 0:01:30]} e6 {[%emt 0:00:30]} 6. d3 {[%emt 0:00:30]} Be7 {[%emt 0:00:30]} 7. c4 {[%emt 0:00:30]} O-O {[%emt 0:00:00]} 8. Nc3 {[%emt 0:00:00]} Ng4 {[%emt 0:01:00]} 9. Ne1 {[%emt 0:01:00]} Nge5 {[%emt 0:01:30]} 10. f4 {[%emt 0:00:30]} Ng6 {[%emt 0:00:00]} 11. Be3 {[%emt 0:07:30]} Nb6 {[%emt 0:02:00]} 12. Bb3 {[%emt 0:01:30]} Bd7 {[%emt 0:00:30]} 13. Qh5 {[%emt 0:00:30]} f5 {[%emt 0:02:30]} 14. Nf3 {[%emt 0:20:30]} Qe8 {[%emt 0:06:30]} 15. Nb5 {[%emt 0:04:30]} fxe4 {[%emt 0:06:30]} 16. Ng5 {[%emt 0:16:30]} Bxg5 {[%emt 0:00:30]} 17. Nxd6 {[%emt 0:14:30]} Bxf4 {[%emt 0:08:30]} 18. Nxe8 {[%emt 0:01:30]} Bxe3+ {[%emt 0:00:00]} 19. Kh1 {[%emt 0:00:00]} Raxe8 {[%emt 0:00:00]} 20. dxe4 {[%emt 0:00:00]} Bd4 {[%emt 0:00:30]} 21. Qe2 {[%emt 0:01:30]} Ne5 {[%emt 0:00:30]} 22. Rxf8+ {[%emt 0:00:30]} Rxf8 {[%emt 0:00:00]} 23. Rf1 {[%emt 0:00:30]} Rxf1+ {[%emt 0:04:00]} 24. Qxf1 {[%emt 0:00:30]} Bc6 {[%emt 0:00:30]} 25. Qe2 {[%emt 0:01:30]} Nbd7 {[%emt 0:01:30]} 26. Bc2 {[%emt 0:03:30]} Nf6 {[%emt 0:00:30]} 27. b4 {[%emt 0:00:00]} cxb4 {[%emt 0:01:30]} 28. Qd2 {[%emt 0:00:00]} Bc5 {[%emt 0:00:30]} 29. Qd8+ {[%emt 0:00:30]} Kf7 {[%emt 0:00:30]} 30. Qc7+ {[%emt 0:00:30]} Nfd7 {[%emt 0:00:30]} 31. Qd8 {[%emt 0:03:30]} b6 {[%emt 0:02:30]} 32. Qh8 {[%emt 0:01:35]} h6 {[%emt 0:00:30]} 33. Qc8 {[%emt 0:01:25]} a5 {[%emt 0:00:00]} 34. Bd1 {[%emt 0:00:18]} g6 {[%emt 0:02:00]} 35. Qh8 {[%emt 0:01:59]} Bf8 {[%emt 0:00:30]} 36. h4 {[%emt 0:01:15]} Nf6 0-1

[Event "17th Spilimbergo Open 2019"]
[Site "Spilimbergo"]
[Date "2019.08.13"]
[Round "7.4"]
[White "Nisipeanu, Liviu-Dieter"]
[Black "Rahul Srivatshav P"]
[Result "1/2-1/2"]
[WhiteElo "2666"]
[BlackElo "2410"]
[PlyCount "62"]
[EventDate "2019.08.09"]
[EventType "swiss"]
[EventCountry "ITA"]
[TimeControl "5400+30"]
[WhiteClock "0:52:00"]
[BlackClock "0:32:00"]

1. c4 {[%emt 0:00:30]} Nf6 {[%emt 0:01:30]} 2. Nc3 {[%emt 0:00:00]} g6 {[%emt 0:00:00]} 3. g3 {[%emt 0:00:00]} Bg7 {[%emt 0:00:00]} 4. Bg2 {[%emt 0:00:00]} O-O {[%emt 0:00:30]} 5. Nf3 {[%emt 0:00:00]} d6 {[%emt 0:00:00]} 6. O-O {[%emt 0:00:30]} c5 {[%emt 0:05:00]} 7. d4 {[%emt 0:03:30]} Nc6 {[%emt 0:00:30]} 8. dxc5 {[%emt 0:00:30]} dxc5 {[%emt 0:00:00]} 9. Bf4 {[%emt 0:00:00]} Nd4 {[%emt 0:00:00]} 10. e3 {[%emt 0:06:00]} Nxf3+ {[%emt 0:09:30]} 11. Bxf3 {[%emt 0:00:30]} Nd7 {[%emt 0:01:30]} 12. g4 {[%emt 0:22:30]} Ne5 {[%emt 0:02:30]} 13. Be2 {[%emt 0:00:30]} b6 {[%emt 0:07:30]} 14. Bxe5 {[%emt 0:22:30]} Bxe5 {[%emt 0:00:30]} 15. Qd5 {[%emt 0:00:00]} Qxd5 {[%emt 0:15:30]} 16. Nxd5 {[%emt 0:00:00]} e6 {[%emt 0:00:30]} 17. Ne7+ {[%emt 0:01:30]} Kg7 {[%emt 0:00:30]} 18. Nxc8 {[%emt 0:04:30]} Raxc8 {[%emt 0:00:00]} 19. Rad1 {[%emt 0:00:30]} Rfd8 {[%emt 0:00:00]} 20. b3 {[%emt 0:00:00]} Bf6 {[%emt 0:00:30]} 21. Kg2 {[%emt 0:03:00]} Kf8 {[%emt 0:01:30]} 22. Kf3 {[%emt 0:00:30]} Rxd1 {[%emt 0:00:30]} 23. Rxd1 {[%emt 0:00:30]} Rd8 {[%emt 0:00:30]} 24. Bd3 {[%emt 0:00:00]} Ke7 {[%emt 0:01:30]} 25. Ke2 {[%emt 0:00:00]} g5 {[%emt 0:00:30]} 26. Bxh7 {[%emt 0:01:30]} Rh8 {[%emt 0:02:30]} 27. Be4 {[%emt 0:00:30]} Be5 {[%emt 0:00:00]} 28. Bc6 {[%emt 0:03:30]} Bd6 {[%emt 0:00:00]} 29. h3 {[%emt 0:00:30]} Rxh3 {[%emt 0:00:30]} 30. Rh1 {[%emt 0:00:30]} Rxh1 {[%emt 0:00:00]} 31. Bxh1 {[%emt 0:00:00]} Be5 1/2-1/2

[Event "17th Spilimbergo Open 2019"]
[Site "Spilimbergo"]
[Date "2019.08.13"]
[Round "7.5"]
[White "Palac, Mladen"]
[Black "Loiacono, Leonardo"]
[Result "1/2-1/2"]
[WhiteElo "2551"]
[BlackElo "2249"]
[PlyCount "94"]
[EventDate "2019.08.09"]
[EventType "swiss"]
[EventCountry "ITA"]
[TimeControl "5400+30"]
[WhiteClock "0:21:00"]
[BlackClock "0:05:00"]

1. Nf3 {[%emt 0:01:30]} d5 {[%emt 0:01:30]} 2. d4 {[%emt 0:00:30]} Nf6 {[%emt 0:00:30]} 3. c4 {[%emt 0:00:00]} c6 {[%emt 0:00:00]} 4. Qc2 {[%emt 0:00:00]} dxc4 {[%emt 0:00:00]} 5. Qxc4 {[%emt 0:00:30]} Bg4 {[%emt 0:00:30]} 6. Nbd2 {[%emt 0:00:30]} Nbd7 {[%emt 0:01:30]} 7. g3 {[%emt 0:00:00]} e6 {[%emt 0:00:30]} 8. Bg2 {[%emt 0:00:00]} Be7 {[%emt 0:02:30]} 9. O-O {[%emt 0:00:00]} O-O {[%emt 0:00:30]} 10. b3 {[%emt 0:00:00]} Qa5 {[%emt 0:09:30]} 11. h3 {[%emt 0:13:30]} Bh5 {[%emt 0:02:30]} 12. Bb2 {[%emt 0:05:30]} Rac8 {[%emt 0:11:30]} 13. Rfc1 {[%emt 0:19:30]} Bg6 {[%emt 0:04:30]} 14. e3 {[%emt 0:00:30]} Ne4 {[%emt 0:01:30]} 15. Qe2 {[%emt 0:00:30]} Nxd2 {[%emt 0:00:30]} 16. Nxd2 {[%emt 0:01:30]} Qc7 {[%emt 0:14:30]} 17. a3 {[%emt 0:01:30]} Qb8 {[%emt 0:03:30]} 18. h4 {[%emt 0:07:30]} h6 {[%emt 0:00:30]} 19. b4 {[%emt 0:05:30]} Bd6 {[%emt 0:03:30]} 20. Nc4 {[%emt 0:02:30]} Bc7 {[%emt 0:00:30]} 21. a4 {[%emt 0:04:30]} Nb6 {[%emt 0:01:30]} 22. Nxb6 {[%emt 0:00:30]} Bxb6 {[%emt 0:01:30]} 23. b5 {[%emt 0:01:30]} cxb5 {[%emt 0:02:30]} 24. Qxb5 {[%emt 0:02:30]} Rxc1+ {[%emt 0:02:30]} 25. Rxc1 {[%emt 0:01:30]} Rc8 {[%emt 0:02:30]} 26. Rxc8+ {[%emt 0:00:30]} Qxc8 {[%emt 0:00:30]} 27. d5 {[%emt 0:10:30]} exd5 {[%emt 0:02:30]} 28. Qxd5 {[%emt 0:00:00]} Qf5 {[%emt 0:01:30]} 29. Bc3 {[%emt 0:03:19]} Qb1+ {[%emt 0:02:30]} 30. Kh2 {[%emt 0:00:01]} Qc2 {[%emt 0:00:30]} 31. a5 {[%emt 0:05:06]} Qxc3 {[%emt 0:00:30]} 32. axb6 {[%emt 0:00:01]} axb6 {[%emt 0:00:30]} 33. h5 {[%emt 0:00:01]} Bc2 {[%emt 0:01:30]} 34. Qd7 {[%emt 0:01:52]} Qd3 {[%emt 0:06:30]} 35. Qe8+ {[%emt 0:01:59]} Kh7 {[%emt 0:00:00]} 36. Qxf7 {[%emt 0:00:05]} Qf5 {[%emt 0:01:00]} 37. Qxf5+ {[%emt 0:01:24]} Bxf5 {[%emt 0:00:00]} 38. Bxb7 {[%emt 0:00:00]} b5 {[%emt 0:00:00]} 39. f3 {[%emt 0:03:49]} Bc2 {[%emt 0:01:30]} 40. g4 {[%emt 0:05:44]} b4 {[%emt 0:00:30]} 41. Bd5 {[%emt 0:00:04]} b3 {[%emt 0:00:30]} 42. Kg3 {[%emt 0:00:07]} b2 {[%emt 0:00:00]} 43. Ba2 {[%emt 0:00:00]} b1=Q {[%emt 0:01:00]} 44. Bxb1 {[%emt 0:01:06]} Bxb1 {[%emt 0:00:30]} 45. f4 {[%emt 0:00:30]} g6 {[%emt 0:00:30]} 46. hxg6+ {[%emt 0:00:47]} Kxg6 {[%emt 0:00:00]} 47. Kh4 {[%emt 0:00:05]} Bc2 1/2-1/2